bitfinex-derivatives/quotes_BTCF0:USTF0_20251208
["timestamp","ask_amount","ask_price","bid_price","bid_amount"]
[1765193892637,0.58508115,92029.0,92028.0,0.16976]
[1765193893040,0.58408115,92029.0,92028.0,0.16876]
[1765193893337,0.08072115,92029.0,92028.0,0.16976]
[1765193893534,0.58512115,92029.0,92028.0,0.16976]
[1765193893840,0.08072115,92029.0,92028.0,0.16976]
[1765193894033,0.58512115,92029.0,92028.0,0.16976]
[1765193894737,0.58412115,92029.0,92028.0,0.16976]
[1765193895138,0.07972115,92029.0,92028.0,0.18675151]
[1765193895338,0.07972115,92029.0,92028.0,0.01799151]
[1765193895539,0.12323999,92029.0,92028.0,0.01799151]
[1765193895736,0.62763999,92029.0,92028.0,0.01799151]
[1765193896132,0.58848963,92029.0,92028.0,0.01799151]
[1765193896438,0.60588963,92029.0,92028.0,0.01799151]
[1765193897341,0.60588963,92029.0,92028.0,0.01799286]
[1765193898532,0.60588963,92029.0,92028.0,0.19821286]
[1765193898735,0.60588963,92029.0,92028.0,0.10770286]
[1765193899829,0.60588963,92029.0,92028.0,0.10770289]
[1765193900739,0.5928391,92029.0,92028.0,0.19821289]
[1765193901740,0.5928791,92029.0,92028.0,0.24510289]
[1765193903447,0.54936026,92029.0,92028.0,0.24510289]
[1765193904039,0.52226036,92029.0,92028.0,0.24510289]
[1765193904238,0.52326036,92029.0,92028.0,0.24510289]
[1765193904546,0.53412556,92029.0,92028.0,0.24510289]
[1765193904736,0.5337052,92029.0,92028.0,0.24410289]
[1765193905046,0.55562977,92029.0,92028.0,0.24510289]
[1765193905246,0.55662977,92029.0,92028.0,0.24510289]
[1765193905443,0.05218977,92029.0,92028.0,0.24510289]
[1765193905648,0.55666977,92029.0,92028.0,0.24510289]
[1765193906045,0.54461982,92029.0,92028.0,0.24510289]
[1765193907343,0.54361982,92029.0,92028.0,0.24410289]
[1765193907644,0.54361982,92029.0,92028.0,0.24610289]
[1765193907848,0.54461982,92029.0,92028.0,0.24610289]
[1765193910648,0.52940457,92029.0,92028.0,0.24610289]
[1765193911141,0.52840457,92029.0,92028.0,0.24610289]
[1765193911341,0.60718535,92029.0,92028.0,0.24610289]
[1765193911538,0.60618535,92029.0,92028.0,0.24410289]
[1765193911741,0.52940457,92029.0,92028.0,0.24610289]
[1765193912047,0.51416989,92029.0,92028.0,0.24610289]
[1765193912239,0.51416989,92029.0,92028.0,0.24610211]
[1765193913446,0.59195067,92029.0,92028.0,0.24610211]
[1765193913649,0.51416989,92029.0,92028.0,0.24610211]
[1765193914751,0.51316989,92029.0,92028.0,0.24610211]
[1765193915051,0.51416989,92029.0,92028.0,0.24610211]
[1765193916152,0.50111991,92029.0,92028.0,0.24610211]
[1765193917554,0.50111991,92029.0,92028.0,0.24510211]
[1765193917751,0.50111991,92029.0,92028.0,0.01799211]
[1765193918152,0.49911991,92029.0,92028.0,0.01799211]
[1765193918453,0.50011991,92029.0,92028.0,0.01799211]
[1765193918655,0.50011991,92029.0,92028.0,0.10770211]
[1765193919151,0.50011991,92029.0,92028.0,0.01799211]
[1765193919554,0.0108657,92025.0,92024.0,0.1366]
[1765193919855,0.0108657,92025.0,92024.0,0.22711]
[1765193920557,0.0128657,92025.0,92024.0,0.22711]
[1765193921057,0.0128657,92025.0,92024.0,0.22811]
[1765193924863,0.0128657,92025.0,92024.0,0.1376]
[1765193925262,0.0128657,92025.0,92024.0,0.22852]
[1765193926059,0.09722886,92027.0,92024.0,0.22852]
[1765193926866,0.0108657,92025.0,92024.0,0.22852]
[1765193928066,0.00181447,92027.0,92024.0,0.22852]
[1765193928866,0.0118657,92025.0,92024.0,0.22852]
[1765193929165,0.0128657,92025.0,92024.0,0.22852]
[1765193929563,0.0118657,92025.0,92024.0,0.22852]
[1765193929768,0.0108657,92025.0,92024.0,0.22852]
[1765193930254,0.0108657,92025.0,92024.0,0.22752]
[1765193930460,0.0118657,92025.0,92024.0,0.22852]
[1765193930662,0.0128657,92025.0,92024.0,0.22852]
[1765193931559,0.0128657,92025.0,92024.0,0.24551393]
[1765193933354,0.010868,92006.0,91976.0,0.0108714]
[1765193933553,0.010868,92006.0,92005.0,0.18166]
[1765193933554,0.181438,92006.0,92005.0,0.18166]
[1765193933768,0.685958,92006.0,92005.0,0.18166]
[1765193934468,0.68605324,92006.0,92005.0,0.18166]
[1765193935467,0.01196324,92006.0,92005.0,0.18166]
[1765193935769,0.38104324,92006.0,92005.0,0.18166]
[1765193936062,0.3669903,92006.0,92005.0,0.18666]
[1765193936262,0.3788583,92006.0,92005.0,0.18666]
[1765193936465,0.5494283,92006.0,92005.0,0.18766]
[1765193937068,0.54947287,92006.0,92005.0,0.18766]
[1765193937964,0.37890287,92006.0,92005.0,0.18766]
[1765193938164,0.36584987,92006.0,92005.0,0.18766]
[1765193938565,0.45382987,92006.0,92005.0,0.18766]
[1765193938969,0.53641987,92006.0,92005.0,0.18766]
[1765193940877,0.18248257,92006.0,92005.0,0.18766]
[1765193941071,0.68700257,92006.0,92005.0,0.18766]
[1765193941272,0.18248257,92006.0,92005.0,0.18766]
[1765193941677,0.68700257,92006.0,92005.0,0.18766]
[1765193941972,0.01191257,92006.0,92005.0,0.18766]
[1765193942276,0.00104457,92006.0,92005.0,0.18766]
[1765193942479,0.50560457,92006.0,92005.0,0.18766]
[1765193942776,4.57e-06,92006.0,92005.0,0.18766]
[1765193943073,0.10422427,92015.0,92014.0,0.19566]
[1765193943266,0.50472303,92015.0,92014.0,0.19566]
[1765193943463,0.00016303,92015.0,92014.0,0.19566]
[1765193943669,0.50472303,92015.0,92014.0,0.19566]
[1765193945079,0.50572303,92015.0,92014.0,0.19766]
[1765193945267,0.00116303,92015.0,92014.0,0.19766]
[1765193945473,0.50572303,92015.0,92014.0,0.21465352]
[1765193945874,0.00116303,92015.0,92014.0,0.21465352]
[1765193946073,0.26395358,92021.0,92020.0,0.19566]
[1765193946280,0.26395358,92021.0,92020.0,0.21265352]
[1765193946577,0.76851358,92021.0,92020.0,0.21265352]
[1765193946777,0.76851358,92021.0,92020.0,0.21265329]
[1765193946973,0.27481968,92021.0,92020.0,0.21265329]
[1765193947377,0.77933968,92021.0,92020.0,0.21265329]
[1765193947682,0.7035761,92021.0,92020.0,0.21265329]
[1765193948074,0.69052526,92021.0,92020.0,0.21265329]
[1765193948383,0.69152526,92021.0,92020.0,0.21565329]
[1765193949976,0.68065916,92021.0,92020.0,0.21565329]
[1765193950180,0.50552,92021.0,92020.0,0.21565329]
[1765193950372,0.59698,92021.0,92020.0,0.21565329]
[1765193950573,0.69371,92021.0,92020.0,0.21565329]
[1765193950769,0.7045761,92021.0,92020.0,0.21565329]
[1765193951475,0.7035761,92021.0,92020.0,0.21265329]
[1765193951678,0.7045761,92021.0,92020.0,0.21365329]
[1765193952385,0.7045761,92021.0,92020.0,0.21465329]
[1765193952676,0.7055761,92021.0,92020.0,0.21465329]
[1765193952981,0.7045761,92021.0,92020.0,0.2136539]
[1765193953485,0.7045761,92021.0,92020.0,0.0179939]
[1765193953885,0.7045761,92021.0,92020.0,0.1268639]
[1765193954072,0.7035761,92021.0,92020.0,0.1268639]
[1765193954383,0.7045761,92021.0,92020.0,0.1268639]
[1765193954783,0.7045761,92021.0,92020.0,0.2327139]
[1765193955585,0.7045761,92021.0,92020.0,0.0179939]
[1765193956183,0.69152444,92021.0,92020.0,0.0179939]
[1765193956381,0.69152444,92021.0,92020.0,0.1268639]
[1765193957487,0.69152444,92021.0,92020.0,0.0179939]
[1765193957891,0.69152444,92021.0,92020.0,0.1268639]
[1765193958086,0.67847278,92021.0,92020.0,0.2327139]
[1765193961693,0.67847278,92021.0,92020.0,0.0179939]
[1765193962294,0.67847278,92021.0,92020.0,0.1268639]
[1765193962992,0.67847278,92021.0,92020.0,0.2327139]
[1765193963192,0.67847278,92021.0,92020.0,0.0179939]
[1765193963689,0.67847278,92021.0,92020.0,0.1268639]
[1765193963893,0.67847278,92021.0,92020.0,0.2327139]
[1765193964581,0.67847278,92021.0,92020.0,0.2327142]
[1765193966189,0.66542123,92021.0,92020.0,0.2327142]
[1765193967493,0.66542123,92021.0,92020.0,0.1268642]
[1765193967692,0.66542123,92021.0,92020.0,0.2327142]
[1765193968090,0.65236968,92021.0,92020.0,0.0179942]
[1765193968490,0.65236968,92021.0,92020.0,0.1268642]
[1765193968886,0.65236968,92021.0,92020.0,0.2327142]
[1765193970888,0.65236968,92021.0,92020.0,0.23271403]
[1765193972593,0.64150358,92021.0,92020.0,0.23271403]
[1765193974990,0.64150358,92021.0,92020.0,0.21572]
[1765193975197,0.64150358,92021.0,92020.0,0.23271396]
[1765193976091,0.6284522,92021.0,92020.0,0.23271396]
[1765193978206,0.61540082,92021.0,92020.0,0.23271396]
[1765193978799,0.61540082,92021.0,92020.0,0.21572]
[1765193979003,0.61540082,92021.0,92020.0,0.23271398]
[1765193979505,0.61540082,92021.0,92020.0,0.01799398]
[1765193980306,0.62626692,92021.0,92020.0,0.01799398]
[1765193981308,0.62626692,92021.0,92020.0,0.23271398]
[1765193986116,0.61321545,92021.0,92020.0,0.23271398]
[1765193986815,0.61321545,92021.0,92020.0,0.12686398]
[1765193987708,0.61321545,92021.0,92020.0,0.01799398]
[1765193988215,0.60016397,92021.0,92020.0,0.01799398]
[1765193993706,0.60016397,92021.0,92020.0,0.01799411]
[1765193995808,0.60016397,92021.0,92020.0,0.23495411]
[1765193996414,0.58711249,92021.0,92020.0,0.23495411]
[1765193997416,0.57624639,92021.0,92020.0,0.23495411]
[1765193998123,0.56319501,92021.0,92020.0,0.23495411]
[1765193998313,0.56319501,92021.0,92020.0,0.01799411]
[1765193998513,0.56319501,92021.0,92020.0,0.23495411]
[1765194005031,0.09846098,92021.0,92020.0,0.23495411]
[1765194005327,0.50548,92021.0,92020.0,0.23495411]
[1765194005526,0.10422682,92030.0,92024.0,0.20097]
[1765194005527,0.07793049,92025.0,92024.0,0.20097]
[1765194005731,0.50448,92025.0,92024.0,0.22882697]
[1765194005937,0.00016303,92030.0,92029.0,0.20097]
[1765194006235,0.43075111,92030.0,92029.0,0.20097]
[1765194006438,0.48915669,92030.0,92029.0,0.20097]
[1765194006633,0.05840558,92035.0,92033.0,0.2118347]
[1765194006840,0.10406379,92040.0,92033.0,0.2118347]
[1765194006841,0.50448,92034.0,92033.0,0.2118347]
[1765194008832,0.001,92034.0,92033.0,0.2198347]
[1765194009429,0.00016303,92043.0,92042.0,0.2118337]
[1765194010848,0.00016303,92043.0,92042.0,0.2138337]
[1765194011228,0.5119019,92058.0,92052.0,0.03415]
[1765194011427,0.5119019,92058.0,92057.0,0.20097]
[1765194011834,0.7142919,92058.0,92057.0,0.1033]
[1765194012034,0.7142919,92058.0,92057.0,0.20097]
[1765194012736,0.7142919,92058.0,92057.0,0.20197]
[1765194014136,0.70343,92058.0,92057.0,0.20197]
[1765194016534,0.76156951,92058.0,92057.0,0.20197]
[1765194017545,0.70343,92058.0,92057.0,0.20197]
[1765194018447,0.7142918,92058.0,92057.0,0.20197]
[1765194019245,0.70343,92058.0,92057.0,0.20197]
[1765194023649,0.70343,92058.0,92057.0,0.001]
[1765194024055,0.19777,92049.0,92048.0,0.00016303]
[1765194024357,0.19777,92031.0,92030.0,0.19958]
[1765194024742,0.09919,92031.0,92030.0,0.19958]
[1765194024953,0.50428,92035.0,92034.0,0.19958]
[1765194026555,0.30183379,92040.0,92039.0,0.19958]
[1765194026753,0.80611379,92040.0,92039.0,0.19958]
[1765194027151,0.86405379,92040.0,92039.0,0.19958]
[1765194027455,0.70205,92040.0,92039.0,0.19958]
[1765194028246,0.70305,92040.0,92039.0,0.20458]
[1765194029042,0.70305,92040.0,92039.0,0.20558]
[1765194030257,0.19877,92040.0,92039.0,0.20558]
[1765194030456,0.69381,92040.0,92039.0,0.20558]
[1765194030657,0.19877,92040.0,92039.0,0.20558]
[1765194030851,0.69381,92040.0,92039.0,0.20558]
[1765194031559,0.75175,92040.0,92039.0,0.20558]
[1765194032255,0.25671,92040.0,92039.0,0.20558]
[1765194032462,0.76099,92040.0,92039.0,0.20558]
[1765194032754,0.25671,92040.0,92039.0,0.20558]
[1765194032961,0.76099,92040.0,92039.0,0.20558]
[1765194034162,0.81911706,92040.0,92039.0,0.20558]
[1765194035250,0.76099,92040.0,92039.0,0.20558]
[1765194056778,0.25671,92040.0,92039.0,0.20558]
[1765194056984,0.67885,92040.0,92039.0,0.25517804]
[1765194057285,0.18467303,92044.0,92043.0,0.1912835]
[1765194057487,0.68891303,92044.0,92043.0,0.1912835]
[1765194059079,0.75180303,92044.0,92043.0,0.1952835]
[1765194059582,0.75180303,92044.0,92043.0,0.1962835]
[1765194059885,0.75180303,92044.0,92043.0,0.1972835]
[1765194061383,0.75180303,92044.0,92043.0,0.006]
[1765194061886,0.75180303,92044.0,92043.0,0.18642]
[1765194067294,0.75180303,92044.0,92043.0,0.006]
[1765194067788,0.75180303,92044.0,92043.0,0.09294]
[1765194069389,0.75180303,92044.0,92043.0,0.006]
[1765194069993,0.75180303,92044.0,92043.0,0.17565]
[1765194070684,0.75176303,92044.0,92043.0,0.17565]
[1765194073594,0.75176303,92044.0,92043.0,0.006]
[1765194090008,0.30603171,92044.0,92043.0,0.17025]
[1765194090207,0.75176303,92044.0,92043.0,0.17025]
[1765194091811,0.00116303,92044.0,92043.0,0.17025]
[1765194092112,0.30264303,92044.0,92043.0,0.17025]
[1765194092420,0.38329303,92044.0,92043.0,0.19957679]
[1765194092623,0.38329303,92044.0,92043.0,0.17025]
[1765194093307,0.00116303,92044.0,92043.0,0.19957004]
[1765194093512,0.00116303,92044.0,92043.0,0.17025]
[1765194094110,0.31415017,92060.0,92059.0,0.1751117]
[1765194094311,0.21017,92060.0,92059.0,0.1751117]
[1765194095506,0.21017,92060.0,92059.0,0.1761117]
[1765194095703,0.21017,92060.0,92059.0,0.18669221]
[1765194095904,0.21017,92060.0,92059.0,0.1761117]
[1765194098810,0.21117,92060.0,92059.0,0.1761117]
[1765194102516,0.21117,92060.0,92059.0,0.001]
[1765194109817,0.14224,92051.0,92050.0,0.01102563]
[1765194112518,0.14324,92051.0,92050.0,0.01502563]
[1765194114630,0.14324,92051.0,92050.0,0.07597563]
[1765194116428,0.14324,92051.0,92050.0,0.01502563]
[1765194117722,0.14324,92051.0,92050.0,0.07597563]
[1765194121533,0.14324,92051.0,92050.0,0.01502563]
[1765194122030,0.14324,92051.0,92050.0,0.00416303]
[1765194122235,0.14324,92051.0,92050.0,3.03e-06]
[1765194122534,0.14324,92051.0,92039.0,0.010864]
[1765194122535,0.18146,92040.0,92039.0,0.010864]
[1765194123122,0.18146,92040.0,92039.0,0.112864]
[1765194123724,0.18146,92040.0,92039.0,0.114864]
[1765194124125,0.18246,92040.0,92039.0,0.120864]
[1765194124731,0.18246,92040.0,92039.0,0.018864]
[1765194124930,0.18246,92040.0,92039.0,0.008]
[1765194131627,0.18246,92040.0,92030.0,0.00016303]
[1765194131628,0.13797,92031.0,92030.0,0.00016303]
[1765194132741,0.13797,92031.0,92030.0,0.00316303]
[1765194132934,0.13897,92031.0,92030.0,0.01016303]
[1765194133540,0.13897,92031.0,92030.0,0.00916303]
[1765194133944,0.13797,92031.0,92030.0,0.00216303]
[1765194134132,0.13797,92031.0,92030.0,0.00316303]
[1765194134133,0.13897,92031.0,92030.0,0.00316303]
[1765194134439,0.13897,92031.0,92030.0,0.00416303]
[1765194135642,0.14097,92031.0,92030.0,0.00216303]
[1765194135843,0.14097,92031.0,92030.0,0.00116303]
[1765194136844,0.14097,92031.0,92030.0,0.11572813]
[1765194138842,0.13797,92031.0,92030.0,0.11572813]
[1765194139042,0.13897,92031.0,92030.0,0.11872813]
[1765194139538,0.13897,92031.0,92030.0,0.12072813]
[1765194140042,0.13797,92031.0,92030.0,0.11772813]
[1765194140242,0.13897,92031.0,92030.0,0.12072813]
[1765194140646,0.13797,92031.0,92030.0,0.11772813]
[1765194140847,0.13897,92031.0,92030.0,0.11972813]
[1765194142130,0.13897,92031.0,92030.0,0.10586303]
[1765194142336,0.13897,92031.0,92030.0,0.05601303]
[1765194142536,0.13897,92031.0,92030.0,0.00416303]
[1765194142737,0.13797,92031.0,92030.0,0.00216303]
[1765194142932,0.13897,92031.0,92030.0,0.00416303]
[1765194143239,0.13897,92031.0,92030.0,0.10786303]
[1765194143445,0.13797,92031.0,92030.0,0.10586303]
[1765194143646,0.13897,92031.0,92030.0,0.10686303]
[1765194145154,0.13897,92031.0,92030.0,0.10486303]
[1765194145440,0.13897,92031.0,92030.0,0.10686303]
[1765194148139,0.13897,92031.0,92030.0,0.10886303]
[1765194148652,0.13797,92031.0,92030.0,0.10586303]
[1765194148847,0.13897,92031.0,92030.0,0.10886303]
[1765194149148,0.13897,92031.0,92030.0,0.10686303]
[1765194149347,0.13897,92031.0,92030.0,0.10886303]
[1765194149948,0.13897,92031.0,92030.0,0.10686303]
[1765194150142,0.13897,92031.0,92030.0,0.10886303]
[1765194150744,0.13897,92031.0,92030.0,0.05701303]
[1765194150944,0.13897,92031.0,92030.0,0.00516303]
[1765194151340,0.13797,92031.0,92030.0,0.00216303]
[1765194151543,0.13897,92031.0,92030.0,0.00416303]
[1765194152154,0.13897,92031.0,92030.0,0.00316303]
[1765194153151,0.13897,92031.0,92030.0,0.00216303]
[1765194153545,0.13797,92031.0,92030.0,0.00116303]
[1765194153742,0.13897,92031.0,92030.0,0.00216303]
[1765194154850,0.13897,92031.0,92030.0,0.00116303]
[1765194155051,0.13897,92031.0,92030.0,0.00216303]
[1765194170754,0.13897,92031.0,92030.0,0.03517303]
[1765194170962,0.13897,92031.0,92030.0,0.00216303]
[1765194180962,0.1286663,92020.0,92018.0,0.02931647]
[1765194181166,0.1286663,92020.0,92013.0,0.03908863]
[1765194181167,0.1178,92014.0,92013.0,0.03908863]
[1765194181974,0.1178,92014.0,92012.0,0.03908863]
[1765194182175,0.1178,92013.0,92012.0,0.03908863]
[1765194182364,0.15285,92012.0,92009.0,0.03908863]
[1765194183669,0.15385,92012.0,92011.0,0.00509527]
[1765194184883,0.15385,92012.0,92011.0,0.04985527]
[1765194185088,0.15385,92012.0,92011.0,0.02747527]
[1765194185883,0.15385,92012.0,92011.0,0.04985527]
[1765194187192,0.15385,92012.0,92011.0,0.02747527]
[1765194187487,0.15385,92012.0,92011.0,0.04985527]
[1765194190588,0.15385,92012.0,92011.0,0.00509527]
[1765194192590,0.15385,92012.0,92011.0,0.02747527]
[1765194193488,0.15385,92012.0,92011.0,0.00509527]
[1765194196880,0.126068,92005.0,92004.0,0.00016303]
[1765194197080,0.126069,91997.0,91996.0,0.03908863]
[1765194197281,0.126069,91997.0,91995.0,0.0307091]
[1765194197282,0.1152,91996.0,91995.0,0.0307091]
[1765194197889,0.11529527,91996.0,91995.0,0.01984]
[1765194198280,0.11729527,91996.0,91995.0,0.02984]
[1765194198993,0.11729527,91996.0,91995.0,0.03484]
[1765194205000,0.11729527,91996.0,91995.0,0.07512]
[1765194205890,0.11729527,91996.0,91995.0,0.05498]
[1765194207502,0.11729527,91996.0,91995.0,0.03484]
[1765194210397,0.1260702,91987.0,91986.0,0.00016303]
[1765194211607,0.1260702,91987.0,91986.0,0.00116303]
[1765194212497,0.1260702,91987.0,91973.0,0.14904863]
[1765194212498,0.1152,91974.0,91973.0,0.14904863]
[1765194212791,0.11529527,91974.0,91973.0,0.1208318]
[1765194212998,0.11529527,91974.0,91969.0,0.1208323]
[1765194212999,0.1152,91970.0,91969.0,0.1208323]
[1765194213404,0.1152,91970.0,91969.0,0.13195774]
[1765194214203,0.1152,91970.0,91969.0,0.13395774]
[1765194214800,0.1172,91970.0,91969.0,0.13495774]
[1765194222316,0.002,91970.0,91969.0,0.13495774]
[1765194222906,0.002,91970.0,91969.0,0.18435346]
[1765194223418,0.1078,91970.0,91969.0,0.18435346]
[1765194227819,0.1078,91970.0,91969.0,0.16322802]
[1765194229417,0.1078,91970.0,91969.0,0.17407801]
[1765194237120,0.1078,91970.0,91969.0,0.21316664]
[1765194238129,0.1078,91970.0,91969.0,0.17407801]
[1765194239730,0.1078,91970.0,91969.0,0.12468229]
[1765194242032,0.10749,91970.0,91969.0,0.12468229]
[1765194244633,0.10749,91970.0,91969.0,0.18340423]
[1765194244829,0.002,91970.0,91969.0,0.12468229]
[1765194245324,0.002,91970.0,91969.0,0.17425461]
[1765194245930,9.527e-05,91974.0,91973.0,0.0821118]
[1765194247431,0.00609527,91974.0,91973.0,0.0841118]
[1765194248838,0.05514527,91974.0,91973.0,0.0871118]
[1765194249245,0.00609527,91974.0,91973.0,0.0871118]
[1765194249445,0.00209527,91974.0,91973.0,0.0871118]
[1765194250232,0.00209527,91974.0,91973.0,0.0821118]
[1765194250428,0.00209527,91974.0,91973.0,0.0861118]
[1765194251643,0.00209527,91974.0,91973.0,0.0821118]
[1765194251845,0.00209527,91974.0,91973.0,0.0871118]
[1765194253141,9.527e-05,91974.0,91973.0,0.0871118]
[1765194253332,0.00209527,91974.0,91973.0,0.0821118]
[1765194253538,0.00209527,91974.0,91973.0,0.0871118]
[1765194254444,0.05024527,91974.0,91973.0,0.0871118]
[1765194254650,0.09917527,91974.0,91973.0,0.0871118]
[1765194256551,0.09917527,91974.0,91973.0,0.0851118]
[1765194256749,0.09917527,91974.0,91973.0,0.14375282]
[1765194257349,0.09917527,91974.0,91973.0,0.14075282]
[1765194257555,0.10017527,91974.0,91973.0,0.0841118]
[1765194258148,0.10117527,91974.0,91973.0,0.0821118]
[1765194258342,0.10117527,91974.0,91973.0,0.0841118]
[1765194259256,0.10117527,91974.0,91973.0,0.0420318]
[1765194259754,0.10117527,91974.0,91973.0,0.0691918]
[1765194259957,0.10117527,91974.0,91973.0,0.0711918]
[1765194260160,0.10217527,91974.0,91973.0,0.0711918]
[1765194260558,0.10217527,91974.0,91973.0,0.0691918]
[1765194260759,0.10217527,91974.0,91973.0,0.0711918]
[1765194262460,0.09717527,91974.0,91973.0,0.0711918]
[1765194262659,0.10217527,91974.0,91973.0,0.0711918]
[1765194264855,0.05324527,91974.0,91973.0,0.0711918]
[1765194265056,0.10217527,91974.0,91973.0,0.0711918]
[1765194275772,0.13411527,91974.0,91973.0,0.0711918]
[1765194279962,0.13411527,91974.0,91973.0,0.0128718]
[1765194280365,0.13411527,91974.0,91973.0,0.002]
[1765194284376,0.13411527,91974.0,91973.0,0.04112604]
[1765194286975,0.13411527,91974.0,91973.0,0.07010604]
[1765194287368,0.13411527,91974.0,91973.0,0.04112604]
[1765194287569,0.13411527,91974.0,91973.0,0.002]
[1765194292678,0.13411527,91974.0,91973.0,0.03098]
[1765194293075,0.13411527,91974.0,91973.0,0.01649]
[1765194293280,0.13411527,91974.0,91973.0,0.002]
[1765194297683,0.13411527,91974.0,91973.0,0.04112604]
[1765194300373,0.13411527,91974.0,91973.0,0.05472604]
[1765194300587,0.13411527,91974.0,91973.0,0.04112604]
[1765194302985,0.13411527,91974.0,91973.0,0.05472604]
[1765194303180,0.13411527,91974.0,91973.0,0.0156]
[1765194304078,0.13411527,91974.0,91973.0,0.0088]
[1765194304481,0.13411527,91974.0,91973.0,0.0156]
[1765194305784,0.13411527,91974.0,91973.0,0.0088]
[1765194307688,0.13411527,91974.0,91973.0,0.002]
[1765194308187,0.13411527,91974.0,91973.0,0.0088]
[1765194308785,0.13411527,91974.0,91973.0,0.0156]
[1765194309182,0.13411527,91974.0,91973.0,0.07432999]
[1765194309386,0.13411527,91974.0,91973.0,0.0156]
[1765194309984,0.13411527,91974.0,91973.0,0.0655863]
[1765194310290,0.13411527,91974.0,91973.0,0.0156]
[1765194311402,0.03194,91983.0,91973.0,0.0156]
[1765194311403,0.05847155,92001.0,92000.0,0.0108686]
[1765194311583,0.08336,92001.0,92000.0,0.0932486]
[1765194311780,0.08336,92001.0,92000.0,0.0108686]
[1765194312491,0.08336,92001.0,92000.0,0.0527586]
[1765194312693,0.08536,92001.0,92000.0,0.0527586]
[1765194312894,0.09736,92001.0,92000.0,0.0527586]
[1765194313091,0.09736,92001.0,92000.0,0.0929386]
[1765194313696,0.09736,92001.0,92000.0,0.1182286]
[1765194314084,0.09736,92001.0,92000.0,0.0929386]
[1765194314288,0.08336,92001.0,92000.0,0.0949386]
[1765194314494,0.08636,92001.0,92000.0,0.0949386]
[1765194314892,0.08336,92001.0,92000.0,0.1202286]
[1765194315096,0.08536,92001.0,92000.0,0.16236613]
[1765194315296,0.08536,92001.0,92000.0,0.1232286]
[1765194315891,0.08536,92001.0,92000.0,0.0979386]
[1765194324702,0.08536,92001.0,92000.0,0.08707]
[1765194325893,0.08536,92001.0,92000.0,0.0979386]
[1765194326300,0.08536,92001.0,92000.0,0.1232286]
[1765194326496,0.08536,92001.0,92000.0,0.0979386]
[1765194326701,0.08536,92001.0,92000.0,0.1232286]
[1765194327799,0.002,92001.0,92000.0,0.1232286]
[1765194332713,0.08364,92001.0,92000.0,0.1232286]
[1765194337307,0.04160303,92010.0,92009.0,0.0914776]
[1765194337501,0.08180303,92010.0,92009.0,0.0914776]
[1765194338602,0.00016303,92010.0,92009.0,0.0914776]
[1765194339106,0.04036303,92010.0,92009.0,0.0924776]
[1765194339509,0.08180303,92010.0,92009.0,0.0924776]
[1765194339712,0.08280303,92010.0,92009.0,0.0944776]
[1765194339899,0.001,92010.0,92009.0,0.0944776]
[1765194340410,0.08164,92026.0,92025.0,0.0914757]
[1765194341295,0.08164,92026.0,92025.0,0.0512957]
[1765194341709,0.08164,92026.0,92025.0,0.0914757]
[1765194342112,0.08264,92026.0,92025.0,0.0914757]
[1765194343408,0.08664,92026.0,92025.0,0.10433541]
[1765194360637,0.08664,92026.0,92025.0,0.002]
[1765194360933,0.0991866,92017.0,92016.0,0.11936303]
[1765194361524,0.0991866,92017.0,92016.0,0.00016303]
[1765194362441,0.0991866,92017.0,92016.0,0.00116303]
[1765194362642,0.1001866,92017.0,92016.0,0.00116303]
[1765194366933,0.08832,92003.0,92002.0,0.1300683]
[1765194367241,0.08832,92003.0,92002.0,0.0108683]
[1765194367539,0.08832,92003.0,92002.0,0.0532683]
[1765194368142,0.08832,92003.0,92002.0,0.1003183]
[1765194369036,0.09032,92003.0,92002.0,0.1023183]
[1765194370043,0.08832,92003.0,92002.0,0.0993183]
[1765194370232,0.09032,92003.0,92002.0,0.1003183]
[1765194370434,0.09032,92003.0,92002.0,0.08945]
[1765194372443,0.08832,92003.0,92002.0,0.08845]
[1765194372644,0.09032,92003.0,92002.0,0.08945]
[1765194375741,0.09032,92003.0,92002.0,0.002]
[1765194376043,0.09032,92003.0,92002.0,0.0968984]
[1765194377038,0.09032,92003.0,92002.0,0.08603]
[1765194379040,0.09032,92003.0,92002.0,0.002]
[1765194379350,0.0910393,91994.0,91987.0,0.0108701]
[1765194379943,0.0910393,91994.0,91992.0,0.01099857]
[1765194380146,0.0910393,91994.0,91993.0,0.04215303]
[1765194380347,0.0910393,91994.0,91993.0,0.08419303]
[1765194380653,0.0910393,91994.0,91993.0,0.08619303]
[1765194380853,0.0910393,91994.0,91993.0,0.00216303]
[1765194381251,0.0108718,91974.0,91973.0,0.08403]
[1765194381464,0.0253,91976.0,91971.0,0.052862]
[1765194381465,0.0910419,91972.0,91971.0,0.052862]
[1765194381646,0.0910419,91972.0,91971.0,0.094902]
[1765194382752,0.0940419,91972.0,91971.0,0.094902]
[1765194382956,0.08317,91972.0,91971.0,0.094902]
[1765194383259,0.08017,91972.0,91971.0,0.094902]
[1765194383454,0.08217,91972.0,91971.0,0.094902]
[1765194383653,0.08217,91972.0,91971.0,0.095902]
[1765194383850,0.002,91972.0,91971.0,0.095902]
[1765194384456,0.00016303,91981.0,91980.0,0.010871]
[1765194384649,0.00016303,91981.0,91980.0,0.116911]
[1765194385249,0.08033303,91981.0,91980.0,0.116911]
[1765194385553,0.08233303,91981.0,91980.0,0.116911]
[1765194385945,0.08233303,91981.0,91980.0,0.117911]
[1765194386148,0.08033303,91981.0,91980.0,0.117911]
[1765194386456,0.08233303,91981.0,91980.0,0.117911]
[1765194386751,0.08233303,91981.0,91980.0,0.116911]
[1765194386958,0.08233303,91981.0,91980.0,0.095901]
[1765194387459,0.09320393,91981.0,91980.0,0.001]
[1765194387657,0.09120393,91981.0,91980.0,0.001]
[1765194387861,0.09120393,91981.0,91980.0,0.11084]
[1765194387862,0.08233303,91981.0,91980.0,0.11084]
[1765194388265,0.08033303,91981.0,91980.0,0.10984]
[1765194388561,0.08233303,91981.0,91980.0,0.11184]
[1765194389261,0.08233303,91981.0,91980.0,0.11084]
[1765194389557,0.08233303,91981.0,91980.0,0.11184]
[1765194390155,0.08233303,91981.0,91980.0,0.08703]
[1765194390360,0.08233303,91981.0,91980.0,0.003]
[1765194390967,0.08233303,91981.0,91980.0,0.08703]
[1765194391162,0.08233303,91981.0,91980.0,0.122711]
[1765194392054,0.08233303,91981.0,91980.0,0.11184]
[1765194392462,0.04175303,91981.0,91980.0,0.122711]
[1765194392666,0.08233303,91981.0,91980.0,0.122711]
[1765194393061,0.00216303,91981.0,91980.0,0.122711]
[1765194394668,0.08233303,91981.0,91980.0,0.122711]